{"text_format":"1","workbook":"xlsx","n_sheets":7,"sheets":["2-15","2-16","Books","Countries","Scientists","Int org","Converting"],"not_rendered":{"charts":0,"images":0,"macros":1,"external_links":0,"defined_names":0,"comments":0,"pivot_tables":0},"unopened":[],"bounds":{"document_bytes":16777216,"sheet_cells":100000,"rows_first":2000,"rows_last":500,"rows_between":2000,"halvings":0,"cell_chars":16384,"cell_head_chars":4096},"cells_cut":0,"cells_raw":0,"read":"whole","date_system":"1900"}

{"sheet":"2-15","index":0,"n_rows":99,"n_cols":73,"rows_kept":99,"cut":false,"hidden":false,"merged":[[93,16,93,17],[94,16,94,17],[95,17,97,17],[95,19,97,19],[98,10,98,15],[79,24,79,25],[80,24,80,25],[81,27,83,28],[84,22,84,24],[86,25,89,25],[0,0,2,0],[0,2,0,9],[71,1,71,2],[43,0,43,2],[44,4,44,8],[48,4,48,8],[49,4,49,7],[50,4,50,8],[46,2,46,8],[47,4,47,8],[64,1,64,2],[65,1,65,2],[63,1,63,4],[42,0,42,2],[45,2,45,8],[0,68,1,68],[0,69,1,69],[0,70,1,70],[0,71,1,72],[1,2,1,3],[1,10,1,33]]}
["Total","3БЗ-МН2-15","Daily incomes",null,null,null,null,null,null,null,null,null,null,null,null,null,null,null,null,null,null,null,null,null,null,null,null,null,null,null,null,null,null,null,null,null,null,null,null,null,null,null,null,null,null,null,null,null,null,null,null,null,null,null,null,null,null,null,null,null,null,null,null,null,null,null,null,null,"Activity","Control work","Exam Work","Final Grade"]
[null,"Date","N",null,"2014-04-08","2014-04-15","2014-04-22","2014-04-29","2014-05-06","2014-06-02","Tests from the test book (number  3 in the \"Books\" sheet)"]
[null,"Up to","stud","contr",4,4,4,4,4,4,"1/53","50","2/47","50","3/66","50","4/58","50","5/40","50","6/75","50","7/102","50","8/90","50","9/91",50,"10/145",50,"11/102",50,"13/111",50,null,null,null,null,null,null,null,null,null,null,null,null,null,null,null,null,null,null,null,null,null,null,null,null,null,null,null,null,null,null,null,null,null,null,20,20,60,100,5]
[{"$f":"BT4","v":97},"Абдуллаева Айша Алиевна",76,16,4,4,"4","4",4,null,8,null,29,null,12,null,30,null,29,null,72,null,98,null,2,null,66,null,45,null,44,null,65,null,null,null,null,null,null,null,null,null,null,null,null,null,null,null,null,null,null,null,null,null,null,null,null,null,null,null,null,null,null,null,null,null,null,null,20,20,57,{"$f":"BQ4+BR4+BS4","v":97},{"$f":"LOOKUP(BT4,Converting!$H$9:$J$12)","v":5}]
[{"$f":"BT5","v":88},"Апаршева Валентина Александровна",72,12,4,4,"4","4",2,null,20,null,38,null,11,null,56,null,17,null,43,null,22,null,69,null,36,null,24,null,11,null,8,null,null,null,null,null,null,null,null,null,null,null,null,null,null,null,null,null,null,null,null,null,null,null,null,null,null,null,null,null,null,null,null,null,null,null,18,20,50,{"$f":"BQ5+BR5+BS5","v":88},{"$f":"LOOKUP(BT5,Converting!$H$9:$J$12)","v":5}]
[{"$f":"BT6","v":86},"Аушева Диана Башировна",77,17,4,1,"4","4",6,2,36,null,19,null,31,null,57,null,27,null,34,null,27,null,33,null,46,null,63,null,19,null,57,null,null,null,null,null,null,null,null,null,null,null,null,null,null,null,null,null,null,null,null,null,null,null,null,null,null,null,null,null,null,null,null,null,null,null,19,20,47,{"$f":"BQ6+BR6+BS6","v":86},{"$f":"LOOKUP(BT6,Converting!$H$9:$J$12)","v":5}]
[{"$f":"BT7","v":83},"Белевский Михаил Александрович",58,18,4,1,4,4,5,null,29,null,44,null,29,null,55,null,30,null,54,null,66,null,83,null,12,null,103,null,100,null,27,null,null,null,null,null,null,null,null,null,null,null,null,null,null,null,null,null,null,null,null,null,null,null,null,null,null,null,null,null,null,null,null,null,null,null,{"$f":"SUM(E7:J7)","v":18},10,55,{"$f":"BQ7+BR7+BS7","v":83},{"$f":"LOOKUP(BT7,Converting!$H$9:$J$12)","v":4}]
[{"$f":"BT8","v":74},"Белогорцева Екатерина Александровна",71,11,4,null,"4","1",6,4,11,null,23,null,18,null,58,null,24,null,2,null,57,null,32,null,6,null,25,null,81,null,31,null,null,null,null,null,null,null,null,null,null,null,null,null,null,null,null,null,null,null,null,null,null,null,null,null,null,null,null,null,null,null,null,null,null,null,19,15,40,{"$f":"BQ8+BR8+BS8","v":74},{"$f":"LOOKUP(BT8,Converting!$H$9:$J$12)","v":4}]
[{"$f":"BT9","v":74},"Бундин Максим Александрович",31,11,4,1,"4","4",2,null,9,null,27,null,14,null,51,null,32,null,42,null,56,null,68,null,9,null,64,null,13,null,105,null,null,null,null,null,null,null,null,null,null,null,null,null,null,null,null,null,null,null,null,null,null,null,null,null,null,null,null,null,null,null,null,null,null,null,15,13,46,{"$f":"BQ9+BR9+BS9","v":74},{"$f":"LOOKUP(BT9,Converting!$H$9:$J$12)","v":4}]
[{"$f":"BT10","v":73},"Буранова Анастасия Александровна",91,11,4,1,4,4,3,null,21,null,31,null,64,null,2,null,25,null,3,null,23,null,31,null,1,null,105,null,75,null,91,null,null,null,null,null,null,null,null,null,null,null,null,null,null,null,null,null,null,null,null,null,null,null,null,null,null,null,null,null,null,null,null,null,null,null,{"$f":"SUM(E10:J10)","v":16},17,40,{"$f":"BQ10+BR10+BS10","v":73},{"$f":"LOOKUP(BT10,Converting!$H$9:$J$12)","v":4}]
[{"$f":"BT11","v":71},"Буянова Анна Владиславовна",35,15,4,1,"4","4",null,null,28,null,3,null,32,null,12,null,33,null,71,null,21,null,62,null,23,null,26,null,85,null,92,null,null,null,null,null,null,null,null,null,null,null,null,null,null,null,null,null,null,null,null,null,null,null,null,null,null,null,null,null,null,null,null,null,null,null,13,13,45,{"$f":"BQ11+BR11+BS11","v":71},{"$f":"LOOKUP(BT11,Converting!$H$9:$J$12)","v":4}]
[{"$f":"BT12","v":71},"Вишнев Павел Владимирович",14,14,4,4,4,4,1,null,30,null,18,null,24,null,32,null,31,null,24,null,28,null,30,null,22,null,65,null,86,null,68,null,null,null,null,null,null,null,null,null,null,null,null,null,null,null,null,null,null,null,null,null,null,null,null,null,null,null,null,null,null,null,null,null,null,null,{"$f":"SUM(E12:J12)","v":17},20,34,{"$f":"BQ12+BR12+BS12","v":71},{"$f":"LOOKUP(BT12,Converting!$H$9:$J$12)","v":4}]
[{"$f":"BT13","v":60},"Воронин Виталий Витальевич",71,11,4,4,"4",null,4,null,25,null,37,null,65,null,31,null,28,null,21,null,52,null,29,null,21,null,107,null,87,null,70,null,null,null,null,null,null,null,null,null,null,null,null,null,null,null,null,null,null,null,null,null,null,null,null,null,null,null,null,null,null,null,null,null,null,null,{"$f":"SUM(E13:J13)","v":12},13,35,{"$f":"BQ13+BR13+BS13","v":60},{"$f":"LOOKUP(BT13,Converting!$H$9:$J$12)","v":3}]
[{"$f":"BT14","v":54},"Быстропов Алексей Олегович",98,18,4,1,4,4,1,null,17,null,30,null,2,null,5,null,12,null,53,null,68,null,81,null,47,null,28,null,97,null,29,null,null,null,null,null,null,null,null,null,null,null,null,null,null,null,null,null,null,null,null,null,null,null,null,null,null,null,null,null,null,null,null,null,null,null,{"$f":"SUM(E14:J14)","v":14},20,20,{"$f":"BQ14+BR14+BS14","v":54},{"$f":"LOOKUP(BT14,Converting!$H$9:$J$12)","v":3}]
[{"$f":"BT15","v":54},"Гордеев Сергей Андреевич",36,16,4,4,"1","4",1,null,53,null,43,null,17,null,6,null,16,null,23,null,24,null,65,null,8,null,66,null,15,null,63,null,null,null,null,null,null,null,null,null,null,null,null,null,null,null,null,null,null,null,null,null,null,null,null,null,null,null,null,null,null,null,null,null,null,null,14,20,20,{"$f":"BQ15+BR15+BS15","v":54},{"$f":"LOOKUP(BT15,Converting!$H$9:$J$12)","v":3}]
[{"$f":"BT16","v":53},"Гриднева Александра Олеговна",97,17,4,1,null,null,1,null,52,null,10,null,28,null,7,null,37,null,4,null,55,null,50,null,89,null,108,null,77,null,36,null,null,null,null,null,null,null,null,null,null,null,null,null,null,null,null,null,null,null,null,null,null,null,null,null,null,null,null,null,null,null,null,null,null,null,{"$f":"SUM(E16:J16)","v":6},17,30,{"$f":"BQ16+BR16+BS16","v":53},{"$f":"LOOKUP(BT16,Converting!$H$9:$J$12)","v":3}]
[{"$f":"BT17","v":51},"Грицук Эльвира Геннадьевна",80,20,4,1,4,1,4,null,51,null,42,null,25,null,8,null,9,null,52,null,25,null,61,null,25,null,29,null,83,null,108,null,null,null,null,null,null,null,null,null,null,null,null,null,null,null,null,null,null,null,null,null,null,null,null,null,null,null,null,null,null,null,null,null,null,null,{"$f":"SUM(E17:J17)","v":14},17,20,{"$f":"BQ17+BR17+BS17","v":51},{"$f":"LOOKUP(BT17,Converting!$H$9:$J$12)","v":3}]
[{"$f":"BT18","v":9},"Ежова Ирина Андреевна",73,13,4,4,null,null,null,1,50,null,32,null,22,null,3,null,13,null,23,null,26,null,28,null,48,null,67,null,91,null,107,null,null,null,null,null,null,null,null,null,null,null,null,null,null,null,null,null,null,null,null,null,null,null,null,null,null,null,null,null,null,null,null,null,null,null,{"$f":"SUM(E18:J18)","v":9},0,0,{"$f":"BQ18+BR18+BS18","v":9},{"$f":"LOOKUP(BT18,Converting!$H$9:$J$12)","v":2}]
[{"$f":"BT19","v":5},"Екименко Олеся Александровна",42,2,4,1,null,null,null,null,49,null,21,null,16,null,9,null,39,null,45,null,67,null,82,null,37,null,4,null,98,null,90,null,null,null,null,null,null,null,null,null,null,null,null,null,null,null,null,null,null,null,null,null,null,null,null,null,null,null,null,null,null,null,null,null,null,null,{"$f":"SUM(E19:J19)","v":5},0,0,{"$f":"BQ19+BR19+BS19","v":5},{"$f":"LOOKUP(BT19,Converting!$H$9:$J$12)","v":2}]
[{"$f":"BT20","v":4},"Ершова Светлана Викторовна",89,9,4,null,null,null,null,null,48,null,26,null,15,null,10,null,15,null,20,null,65,null,84,null,11,null,109,null,21,null,106,null,null,null,null,null,null,null,null,null,null,null,null,null,null,null,null,null,null,null,null,null,null,null,null,null,null,null,null,null,null,null,null,null,null,null,{"$f":"SUM(E20:J20)","v":4},0,0,{"$f":"BQ20+BR20+BS20","v":4},{"$f":"LOOKUP(BT20,Converting!$H$9:$J$12)","v":2}]
[{"$f":"BT21","v":2},"Ескина Елена Сергеевна",69,9,null,1,null,null,null,1,13,null,20,null,6,null,1,null,14,null,32,null,69,null,80,null,39,null,31,null,96,null,111,null,null,null,null,null,null,null,null,null,null,null,null,null,null,null,null,null,null,null,null,null,null,null,null,null,null,null,null,null,null,null,null,null,null,null,{"$f":"SUM(E21:J21)","v":2},0,0,{"$f":"BQ21+BR21+BS21","v":2},{"$f":"LOOKUP(BT21,Converting!$H$9:$J$12)","v":2}]
[{"$f":"BT22","v":1},"Злобин Никита Сергеевич",16,16,null,1,null,null,null,null,47,null,12,null,4,null,33,null,3,null,73,null,97,null,1,null,65,null,68,null,57,null,103,null,null,null,null,null,null,null,null,null,null,null,null,null,null,null,null,null,null,null,null,null,null,null,null,null,null,null,null,null,null,null,null,null,null,null,{"$f":"SUM(E22:J22)","v":1},0,0,{"$f":"BQ22+BR22+BS22","v":1},{"$f":"LOOKUP(BT22,Converting!$H$9:$J$12)","v":2}]
[{"$f":"BT23","v":0},"Иваненко Вероника Васильевна",18,18,null,null,null,null,null,null,37,null,33,null,1,null,54,null,38,null,5,null,54,null,36,null,90,null,11,null,76,null,104,null,null,null,null,null,null,null,null,null,null,null,null,null,null,null,null,null,null,null,null,null,null,null,null,null,null,null,null,null,null,null,null,null,null,null,{"$f":"SUM(E23:J23)","v":0},0,0,{"$f":"BQ23+BR23+BS23","v":0},{"$f":"LOOKUP(BT23,Converting!$H$9:$J$12)","v":2}]
[{"$f":"BT24","v":0},"Ипполитова Анастасия Игоревна",34,14,null,null,null,null,null,null,46,null,34,null,27,null,53,null,21,null,51,null,29,null,53,null,33,null,125,null,94,null,84,null,null,null,null,null,null,null,null,null,null,null,null,null,null,null,null,null,null,null,null,null,null,null,null,null,null,null,null,null,null,null,null,null,null,null,{"$f":"SUM(E24:J24)","v":0},0,0,{"$f":"BQ24+BR24+BS24","v":0},{"$f":"LOOKUP(BT24,Converting!$H$9:$J$12)","v":2}]
[{"$f":"BT25","v":0},"Кабалоева Алина Шамильевна",41,1,null,null,null,null,null,null,38,null,19,null,21,null,52,null,7,null,33,null,30,null,40,null,49,null,42,null,90,null,83,null,null,null,null,null,null,null,null,null,null,null,null,null,null,null,null,null,null,null,null,null,null,null,null,null,null,null,null,null,null,null,null,null,null,null,{"$f":"SUM(E25:J25)","v":0},0,0,{"$f":"BQ25+BR25+BS25","v":0},{"$f":"LOOKUP(BT25,Converting!$H$9:$J$12)","v":2}]
[{"$f":"BT26","v":0},"Казимирова Ксения Романовна",16,16," ",null,null,null,null,null,45,null,28,null,33,null,11,null,20,null,6,null,70,null,79,null,34,null,128,null,95,null,79,null,null,null,null,null,null,null,null,null,null,null,null,null,null,null,null,null,null,null,null,null,null,null,null,null,null,null,null,null,null,null,null,null,null,null,{"$f":"SUM(E26:J26)","v":0},0,0,{"$f":"BQ26+BR26+BS26","v":0},{"$f":"LOOKUP(BT26,Converting!$H$9:$J$12)","v":2}]
[{"$f":"BT27","v":2},"Квателадзе Виктория Зурабовна",69,9,null,1,null,null,null,1,44,null,25,null,7,null,17,null,35,null,64,null,89,null,85,null,50,null,12,null,102,null,76,null,null,null,null,null,null,null,null,null,null,null,null,null,null,null,null,null,null,null,null,null,null,null,null,null,null,null,null,null,null,null,null,null,null,null,{"$f":"SUM(E27:J27)","v":2},0,0,{"$f":"BQ27+BR27+BS27","v":2},{"$f":"LOOKUP(BT27,Converting!$H$9:$J$12)","v":2}]
[1,"Клементе Кристина Мануэлевна",16,16,null,1,null,null,null,null,18,null,4,null,34,null,19,null,18,null,7,null,85,null,27,null,24,null,69,null,33,null,75,null,null,null,null,null,null,null,null,null,null,null,null,null,null,null,null,null,null,null,null,null,null,null,null,null,null,null,null,null,null,null,null,null,null,null,1,0,0,1,{"$f":"LOOKUP(BT28,Converting!$H$9:$J$12)","v":2}]
[0,"Лексакова Анастасия Михайловна",18,18,null,null,null,null,null,null,43,null,8,null,37,null,24,null,1,null,44,null,77,null,54,null,51,null,13,null,66,null,74,null,null,null,null,null,null,null,null,null,null,null,null,null,null,null,null,null,null,null,null,null,null,null,null,null,null,null,null,null,null,null,null,null,null,null,0,0,0,0,{"$f":"LOOKUP(BT29,Converting!$H$9:$J$12)","v":2}]
[0,"Макарова Александра Олеговна",34,14,null,null,null,null,null,null,19,null,41,null,35,null,14,null,19,null,8,null,94,null,38,null,35,null,131,null,27,null,73,null,null,null,null,null,null,null,null,null,null,null,null,null,null,null,null,null,null,null,null,null,null,null,null,null,null,null,null,null,null,null,null,null,null,null,0,0,0,0,{"$f":"LOOKUP(BT30,Converting!$H$9:$J$12)","v":2}]
[0,"Нартикоева Регина Валерьевна",41,1,null,null,null,null,null,null,42,null,16,null,36,null,4,null,6,null,63,null,79,null,64,null,52,null,133,null,65,null,72,null,null,null,null,null,null,null,null,null,null,null,null,null,null,null,null,null,null,null,null,null,null,null,null,null,null,null,null,null,null,null,null,null,null,null,0,0,0,0,{"$f":"LOOKUP(BT31,Converting!$H$9:$J$12)","v":2}]
[0,"Носирова Сабина Ботиржон кизи",16,16," ",null,null,null,null,null,15,null,40,null,9,null,23,null,11,null,41,null,87,null,26,null,7,null,14,null,49,null,71,null,null,null,null,null,null,null,null,null,null,null,null,null,null,null,null,null,null,null,null,null,null,null,null,null,null,null,null,null,null,null,null,null,null,null,0,0,0,0,{"$f":"LOOKUP(BT32,Converting!$H$9:$J$12)","v":2}]
[0,"Ожиганов Олег Владимирович",41,1,null,null,null,null,null,null,41,null,39,null,30,null,20,null,8,null,61,null,78,null,51,null,53,null,70,null,30,null,69,null,null,null,null,null,null,null,null,null,null,null,null,null,null,null,null,null,null,null,null,null,null,null,null,null,null,null,null,null,null,null,null,null,null,null,0,0,0,0,{"$f":"LOOKUP(BT33,Converting!$H$9:$J$12)","v":2}]
[0,"Охват Екатерина Юрьевна",16,16," ",null,null,null,null,null,12,null,36,null,26,null,22,null,10,null,22,null,95,null,35,null,32,null,41,null,38,null,67,null,null,null,null,null,null,null,null,null,null,null,null,null,null,null,null,null,null,null,null,null,null,null,null,null,null,null,null,null,null,null,null,null,null,null,0,0,0,0,{"$f":"LOOKUP(BT34,Converting!$H$9:$J$12)","v":2}]
[2,"Пономарёв Роман Владимирович",69,9,null,1,null,null,null,1,40,null,35,null,3,null,21,null,22,null,65,null,53,null,66,null,54,null,44,null,59,null,66,null,null,null,null,null,null,null,null,null,null,null,null,null,null,null,null,null,null,null,null,null,null,null,null,null,null,null,null,null,null,null,null,null,null,null,2,0,0,2,{"$f":"LOOKUP(BT35,Converting!$H$9:$J$12)","v":2}]
[1,"Савельева Ирина Александровна",16,16,null,1,null,null,null,null,39,null,24,null,23,null,4,null,34,null,22,null,88,null,37,null,10,null,134,null,41,null,64,null,null,null,null,null,null,null,null,null,null,null,null,null,null,null,null,null,null,null,null,null,null,null,null,null,null,null,null,null,null,null,null,null,null,null,1,0,0,1,{"$f":"LOOKUP(BT36,Converting!$H$9:$J$12)","v":2}]
[0,"Тарасова Валения Михайловна",18,18,null,null,null,null,null,null,38,null,11,null,20,null,18,null,23,null,62,null,86,null,39,null,38,null,2,null,7,null,62,null,null,null,null,null,null,null,null,null,null,null,null,null,null,null,null,null,null,null,null,null,null,null,null,null,null,null,null,null,null,null,null,null,null,null,0,0,0,0,{"$f":"LOOKUP(BT37,Converting!$H$9:$J$12)","v":2}]
[0,"Чекалина Ксения Сергеевна",34,14,null,null,null,null,null,null,34,null,6,null,8,null,16,null,40,null,31,null,90,null,52,null,26,null,43,null,60,null,59,null,null,null,null,null,null,null,null,null,null,null,null,null,null,null,null,null,null,null,null,null,null,null,null,null,null,null,null,null,null,null,null,null,null,null,0,0,0,0,{"$f":"LOOKUP(BT38,Converting!$H$9:$J$12)","v":2}]
[0,"Шахова Оксана Фархадовна",41,1,null,null,null,null,null,null,32,null,1,null,19,null,15,null,36,null,9,null,80,null,34,null,55,null,135,null,53,null,58,null,null,null,null,null,null,null,null,null,null,null,null,null,null,null,null,null,null,null,null,null,null,null,null,null,null,null,null,null,null,null,null,null,null,null,0,0,0,0,{"$f":"LOOKUP(BT39,Converting!$H$9:$J$12)","v":2}]
[0,"Шестопалов Руслан Евгеньевич",16,16," ",null,null,null,null,null,2,null,14,null,5,null,13,null,26,null,70,null,96,null,67,null,5,null,32,null,24,null,56,null,null,null,null,null,null,null,null,null,null,null,null,null,null,null,null,null,null,null,null,null,null,null,null,null,null,null,null,null,null,null,null,null,null,null,0,0,0,0,{"$f":"LOOKUP(BT40,Converting!$H$9:$J$12)","v":2}]
[]
[]
["Your marks"]
["colored for the class"]
["",null,"",null,"missed the event"]
[0,null,"for a valid reason"]
[-5,null,"bad behavior"]
[2,null,null,null,"passiveness",null,null,null,null,-1]
[3,null,"",null,"satisfactory"]
[4,null,null,null,"good"]
[5,null,null,null,"excellent"]
[null,"digital for the lab"]
[null,"test"]
[0,"wrong test number"]
[1,"MS Word file format needed"]
[2,"copyright violation"]
[9,"task reserved"]
[10,"wrong language used"]
[11,"made with mistakes"]
[12,"not all correct answers found"]
[13,"needs explanation of other options"]
[14,"bad translation"]
[27,"bad format, short explanation"]
[37,"correct option with no explanation of this choice"]
[50,"good decoration with a wrong answer"]
[75,"good decoration with a correct answer"]
[null,"Absurd"]
[25,"ALS mistake found"]
[75,"story with mistake admitted"]
[null,"essay"]
[76,"needs correction and additional information"]
[77,"web site description needed"]
[]
[]
[]
[]
[]
[]
[]
[null,null,null,null,null,null,null,null,null,null,null,null,null,null,null,null,null,null,null,null,null,null,null,null,"Format"]
[null,null,null,null,null,null,null,null,null,null,null,null,null,null,null,null,null,null,null,null,null,null,null,null,"no limits"]
[null,null,null,null,null,null,null,null,null,null,null,null,null,null,null,null,null,null,null,null,null,null,null,null,null,null,null,"as initial text"]
[]
[]
[]
[]
[]
[]
[]
[]
[]
[]
[]
[null,null,null,null,null,null,null,null,null,null,null,null,null,null,null,null,"Format"]
[null,null,null,null,null,null,null,null,null,null,null,null,null,null,null,null,"no limits"]
[null,null,null,null,null,null,null,null,null,null,"13 points for a page; use given key words and their ",null,null,null,null,null,null,"as initial text",null,"as initial text"]
[null,null,null,null,null,null,null,null,null,null,"explanation. The Review may not be chorter than its task"]
[null,null,null,null,null,null,null,null,null,null,"line by line (English under Russian) translation"]
[null,null,null,null,null,null,null,null,null,null,"see the task for the Lab"]

{"sheet":"2-16","index":1,"n_rows":99,"n_cols":41,"rows_kept":99,"cut":false,"hidden":false,"merged":[[94,16,94,17],[95,17,97,17],[98,10,98,15],[95,19,97,19],[1,10,1,33],[80,24,80,25],[81,27,83,28],[84,22,84,24],[86,25,89,25],[93,16,93,17],[0,38,1,38],[0,39,1,40],[1,2,1,3],[79,24,79,25],[47,4,47,8],[0,0,2,0],[0,2,0,9],[0,36,1,36],[0,37,1,37],[42,0,42,2],[43,0,43,2],[44,4,44,8],[45,2,45,8],[46,2,46,8],[71,1,71,2],[48,4,48,8],[49,4,49,7],[50,4,50,8],[63,1,63,4],[64,1,64,2],[65,1,65,2]]}
["Total","3БЗ-МН2-16","Daily incomes",null,null,null,null,null,null,null,null,null,null,null,null,null,null,null,null,null,null,null,null,null,null,null,null,null,null,null,null,null,null,null,null,null,"Activity","Control work","Exam Work","Final Grade"]
[null,"Date","N",null,"2014-04-08","2014-04-15","2014-04-22","2014-04-29","2014-05-06","2014-06-02","Tests from the test book (number  3 in the \"Books\" sheet)"]
[null,"Up to","stud","contr",4,4,4,4,4,4,"1/53","50","2/47","50","3/66","50","4/58","50","5/40","50","6/75","50","7/102","50","8/90","50","9/91",50,"10/145",50,"11/102",50,"13/111",50,null,null,20,20,60,100,5]
[{"$f":"AN4","v":97},"Андреева Александра Александровна",76,16,4,4,"4","4",4,null,8,null,46,null,12,null,41,null,34,null,74,null,101,null,3,null,88,null,33,null,64,null,5,null,null,null,20,20,57,{"$f":"AK4+AL4+AM4","v":97},{"$f":"LOOKUP(AN4,Converting!$H$9:$J$12)","v":5}]
[88,"Баштаненко Виктория Игоревна",72,12,4,4,"4","4",2,null,20,null,43,null,11,null,56,null,32,null,36,null,58,null,46,null,3,null,46,null,71,null,98,null,null,null,18,20,50,88,{"$f":"LOOKUP(AN5,Converting!$H$9:$J$12)","v":5}]
[86,"Бжалава Елена Кахаберовна",77,17,4,1,"4","4",6,2,36,null,19,null,66,null,57,null,17,null,47,null,59,null,90,null,4,null,6,null,99,null,87,null,null,null,19,20,47,86,{"$f":"LOOKUP(AN6,Converting!$H$9:$J$12)","v":5}]
[83,"Бурсикова Мария Александровна",58,18,4,1,4,4,5,null,29,null,42,null,63,null,55,null,16,null,19,null,61,null,83,null,13,null,71,null,10,null,77,null,null,null,{"$f":"SUM(E7:J7)","v":18},10,55,83,{"$f":"LOOKUP(AN7,Converting!$H$9:$J$12)","v":4}]
[74,"Жарикова Виктория Юрьевна",71,11,4,null,"4","1",6,4,11,null,22,null,18,null,58,null,10,null,50,null,60,null,89,null,28,null,7,null,31,null,81,null,null,null,19,15,40,74,{"$f":"LOOKUP(AN8,Converting!$H$9:$J$12)","v":4}]
[74,"Кабанов Михаил Сергеевич",31,11,4,1,"4","4",2,null,9,null,41,null,14,null,51,null,21,null,39,null,63,null,86,null,40,null,77,null,93,null,85,null,null,null,15,13,46,74,{"$f":"LOOKUP(AN9,Converting!$H$9:$J$12)","v":4}]
[73,"Казаков Дмитрий Сергеевич",91,11,4,1,4,4,3,null,21,null,40,null,64,null,42,null,22,null,12,null,74,null,42,null,2,null,47,null,25,null,101,null,null,null,{"$f":"SUM(E10:J10)","v":16},17,40,73,{"$f":"LOOKUP(AN10,Converting!$H$9:$J$12)","v":4}]
[71,"Кравцов Владислав Игоревич",35,15,4,1,"4","4",null,null,28,null,3,null,62,null,12,null,5,null,75,null,3,null,72,null,56,null,1,null,45,null,102,null,null,null,13,13,45,71,{"$f":"LOOKUP(AN11,Converting!$H$9:$J$12)","v":4}]
[71,"Мамыкина Екатерина Александровна",14,14,4,4,4,4,1,null,30,null,18,null,60,null,32,null,15,null,37,null,1,null,73,null,29,null,78,null,36,null,78,null,null,null,{"$f":"SUM(E12:J12)","v":17},20,34,71,{"$f":"LOOKUP(AN12,Converting!$H$9:$J$12)","v":4}]
[60,"Марченко Александр Александрович",71,11,4,4,"4",null,4,null,25,null,39,null,65,null,31,null,13,null,46,null,75,null,74,null,57,null,22,null,47,null,80,null,null,null,{"$f":"SUM(E13:J13)","v":12},13,35,60,{"$f":"LOOKUP(AN13,Converting!$H$9:$J$12)","v":3}]
[54,"Минаева Кристина Геннадиевна",98,18,4,1,4,4,1,null,17,null,38,null,2,null,45,null,14,null,18,null,49,null,57,null,14,null,23,null,17,null,89,null,null,null,{"$f":"SUM(E14:J14)","v":14},20,20,54,{"$f":"LOOKUP(AN14,Converting!$H$9:$J$12)","v":3}]
[54,"Мохова Марина Владимировна",36,16,4,4,"1","4",1,null,4,null,37,null,17,null,44,null,20,null,49,null,62,null,87,null,41,null,80,null,55,null,93,null,null,null,14,20,20,54,{"$f":"LOOKUP(AN15,Converting!$H$9:$J$12)","v":3}]
[53,"Орельчикова Ольга Михайловна",97,17,4,1,null,null,1,null,24,null,10,null,33,null,47,null,1,null,10,null,71,null,47,null,87,null,5,null,77,null,96,null,null,null,{"$f":"SUM(E16:J16)","v":6},17,30,53,{"$f":"LOOKUP(AN16,Converting!$H$9:$J$12)","v":3}]
[51,"Отлеснова Алена Вадимовна",80,20,4,1,4,1,4,null,26,null,36,null,59,null,48,null,39,null,40,null,4,null,71,null,58,null,83,null,63,null,100,null,null,null,{"$f":"SUM(E17:J17)","v":14},17,20,51,{"$f":"LOOKUP(AN17,Converting!$H$9:$J$12)","v":3}]
[9,"Пенкина Анастасия Андреевна",73,13,4,4,null,null,null,1,31,null,31,null,42,null,43,null,3,null,17,null,72,null,77,null,18,null,34,null,51,null,97,null,null,null,{"$f":"SUM(E18:J18)","v":9},0,0,9,{"$f":"LOOKUP(AN18,Converting!$H$9:$J$12)","v":2}]
[5,"Питкевич Илона Михайловна",42,2,4,1,null,null,null,null,22,null,21,null,16,null,49,null,38,null,48,null,48,null,41,null,44,null,84,null,88,null,110,null,null,null,{"$f":"SUM(E19:J19)","v":5},0,0,5,{"$f":"LOOKUP(AN19,Converting!$H$9:$J$12)","v":2}]
[4,"Привязникова Анаставия Викторовна",89,9,4,null,null,null,null,null,27,null,29,null,15,null,10,null,4,null,16,null,52,null,56,null,59,null,15,null,61,null,86,null,null,null,{"$f":"SUM(E20:J20)","v":4},0,0,4,{"$f":"LOOKUP(AN20,Converting!$H$9:$J$12)","v":2}]
[2,"Проценко Алексей Сергеевич",69,9,null,1,null,null,null,1,13,null,20,null,56,null,46,null,37,null,30,null,47,null,49,null,15,null,85,null,16,null,109,null,null,null,{"$f":"SUM(E21:J21)","v":2},0,0,2,{"$f":"LOOKUP(AN21,Converting!$H$9:$J$12)","v":2}]
[1,"Расулова Гулноза Мамасалаевна",16,16,null,1,null,null,null,null,10,null,12,null,4,null,33,null,27,null,68,null,102,null,4,null,65,null,35,null,37,null,6,null,null,null,{"$f":"SUM(E22:J22)","v":1},0,0,1,{"$f":"LOOKUP(AN22,Converting!$H$9:$J$12)","v":2}]
[0,"Рафекова Диана Мансуровна",18,18,null,null,null,null,null,null,37,null,32,null,1,null,54,null,23,null,11,null,51,null,25,null,85,null,16,null,46,null,95,null,null,null,{"$f":"SUM(E23:J23)","v":0},0,0,0,{"$f":"LOOKUP(AN23,Converting!$H$9:$J$12)","v":2}]
[0,"Рогачева Алёна Александровна",34,14,null,null,null,null,null,null,2,null,30,null,48,null,53,null,7,null,29,null,17,null,78,null,17,null,86,null,14,null,82,null,null,null,{"$f":"SUM(E24:J24)","v":0},0,0,0,{"$f":"LOOKUP(AN24,Converting!$H$9:$J$12)","v":2}]
[0,"Савченко Владислава Юрьевна",41,1,null,null,null,null,null,null,38,null,19,null,54,null,52,null,35,null,35,null,37,null,76,null,19,null,21,null,89,null,94,null,null,null,{"$f":"SUM(E25:J25)","v":0},0,0,0,{"$f":"LOOKUP(AN25,Converting!$H$9:$J$12)","v":2}]
[0,"Салимов Вячеслав Маратович",16,16," ",null,null,null,null,null,33,null,28,null,49,null,11,null,9,null,27,null,50,null,24,null,16,null,48,null,92,null,99,null,null,null,{"$f":"SUM(E26:J26)","v":0},0,0,0,{"$f":"LOOKUP(AN26,Converting!$H$9:$J$12)","v":2}]
[2,"Саноян Саак Левонович",69,9,null,1,null,null,null,1,35,null,33,null,3,null,26,null,8,null,59,null,99,null,55,null,60,null,36,null,101,null,88,null,null,null,{"$f":"SUM(E27:J27)","v":2},0,0,2,{"$f":"LOOKUP(AN27,Converting!$H$9:$J$12)","v":2}]
[1,"Семенистик Мария Петровна",16,16,null,1,null,null,null,null,18,null,2,null,41,null,27,null,24,null,25,null,84,null,48,null,31,null,87,null,82,null,15,null,null,null,{"$f":"SUM(E28:J28)","v":1},0,0,1,{"$f":"LOOKUP(AN28,Converting!$H$9:$J$12)","v":2}]
[0,"Сёмина Карина Георгиевна",18,18,null,null,null,null,null,null,23,null,5,null,53,null,34,null,40,null,56,null,64,null,59,null,61,null,38,null,12,null,26,null,null,null,{"$f":"SUM(E29:J29)","v":0},0,0,0,{"$f":"LOOKUP(AN29,Converting!$H$9:$J$12)","v":2}]
[0,"Спицына Дана Андреевна",34,14,null,null,null,null,null,null,19,null,9,null,51,null,36,null,11,null,66,null,92,null,43,null,27,null,49,null,34,null,37,null,null,null,{"$f":"SUM(E30:J30)","v":0},0,0,0,{"$f":"LOOKUP(AN30,Converting!$H$9:$J$12)","v":2}]
[0,"Субботина Анастасия Владимировна",41,1,null,null,null,null,null,null,16,null,44,null,57,null,39,null,25,null,26,null,81,null,58,null,62,null,94,null,80,null,48,null,null,null,{"$f":"SUM(E31:J31)","v":0},0,0,0,{"$f":"LOOKUP(AN31,Converting!$H$9:$J$12)","v":2}]
[0,"Фёдорова Анна Руслановна",16,16," ",null,null,null,null,null,15,null,34,null,50,null,4,null,18,null,58,null,85,null,44,null,42,null,39,null,72,null,59,null,null,null,{"$f":"SUM(E32:J32)","v":0},0,0,0,{"$f":"LOOKUP(AN32,Converting!$H$9:$J$12)","v":2}]
[0,"Фрезе Дарья Александровна",41,1,null,null,null,null,null,null,14,null,15,null,55,null,38,null,28,null,57,null,83,null,70,null,63,null,61,null,73,null,60,null,null,null,{"$f":"SUM(E33:J33)","v":0},0,0,0,{"$f":"LOOKUP(AN33,Converting!$H$9:$J$12)","v":2}]
[0,"Цыплакова Александра Павловна",16,16," ",null,null,null,null,null,12,null,7,null,52,null,40,null,26,null,28,null,93,null,23,null,20,null,8,null,62,null,11,null,null,null,{"$f":"SUM(E34:J34)","v":0},0,0,0,{"$f":"LOOKUP(AN34,Converting!$H$9:$J$12)","v":2}]
[2,"Четыркина Анна Николаевна",69,9,null,1,null,null,null,1,7,null,35,null,13,null,29,null,2,null,67,null,76,null,45,null,64,null,9,null,78,null,22,null,null,null,{"$f":"SUM(E35:J35)","v":2},0,0,2,{"$f":"LOOKUP(AN35,Converting!$H$9:$J$12)","v":2}]
[1,"Шацкий Глеб Андреевич",16,16,null,1,null,null,null,null,6,null,45,null,58,null,37,null,6,null,38,null,91,null,60,null,43,null,95,null,58,null,33,null,null,null,{"$f":"SUM(E36:J36)","v":1},0,0,1,{"$f":"LOOKUP(AN36,Converting!$H$9:$J$12)","v":2}]
[0,"Шерфан Стефани Вассимовна",18,18,null,null,null,null,null,null,5,null,47,null,61,null,35,null,12,null,60,null,82,null,22,null,65,null,40,null,79,null,45,null,null,null,{"$f":"SUM(E37:J37)","v":0},0,0,0,{"$f":"LOOKUP(AN37,Converting!$H$9:$J$12)","v":2}]
[0,"Шестакова Светлана Вадимовна",34,14,null,null,null,null,null,null,3,null,17,null,62,null,28,null,19,null,55,null,86,null,75,null,45,null,96,null,84,null,52,null,null,null,{"$f":"SUM(E38:J38)","v":0},0,0,0,{"$f":"LOOKUP(AN38,Converting!$H$9:$J$12)","v":2}]
[0,"Шихсаидова Султанат Данияловна",41,1,null,null,null,null,null,null,1,null,13,null,10,null,25,null,36,null,69,null,100,null,88,null,30,null,62,null,67,null,61,null,null,null,{"$f":"SUM(E39:J39)","v":0},0,0,0,{"$f":"LOOKUP(AN39,Converting!$H$9:$J$12)","v":2}]
[]
[]
[]
["Your marks"]
["colored for the class"]
["",null,"",null,"missed the event"]
[0,null,"for a valid reason"]
[-5,null,"bad behavior"]
[2,null,null,null,"passiveness",null,null,null,null,-1]
[3,null,"",null,"satisfactory"]
[4,null,null,null,"good"]
[5,null,null,null,"excellent"]
[null,"digital for the lab"]
[null,"test"]
[0,"wrong test number"]
[1,"MS Word file format needed"]
[2,"copyright violation"]
[9,"task reserved"]
[10,"wrong language used"]
[11,"made with mistakes"]
[12,"not all correct answers found"]
[13,"needs explanation of other options"]
[14,"bad translation"]
[27,"bad format, short explanation"]
[37,"correct option with no explanation of this choice"]
[50,"good decoration with a wrong answer"]
[75,"good decoration with a correct answer"]
[null,"Absurd"]
[25,"ALS mistake found"]
[75,"story with mistake admitted"]
[null,"essay"]
[76,"needs correction and additional information"]
[77,"web site description needed"]
[]
[]
[]
[]
[]
[]
[]
[null,null,null,null,null,null,null,null,null,null,null,null,null,null,null,null,null,null,null,null,null,null,null,null,"Format"]
[null,null,null,null,null,null,null,null,null,null,null,null,null,null,null,null,null,null,null,null,null,null,null,null,"no limits"]
[null,null,null,null,null,null,null,null,null,null,null,null,null,null,null,null,null,null,null,null,null,null,null,null,null,null,null,"as initial text"]
[]
[]
[]
[]
[]
[]
[]
[]
[]
[]
[]
[null,null,null,null,null,null,null,null,null,null,null,null,null,null,null,null,"Format"]
[null,null,null,null,null,null,null,null,null,null,null,null,null,null,null,null,"no limits"]
[null,null,null,null,null,null,null,null,null,null,"13 points for a page; use given key words and their ",null,null,null,null,null,null,"as initial text",null,"as initial text"]
[null,null,null,null,null,null,null,null,null,null,"explanation. The Review may not be chorter than its task"]
[null,null,null,null,null,null,null,null,null,null,"line by line (English under Russian) translation"]
[null,null,null,null,null,null,null,null,null,null,"see the task for the Lab"]

{"sheet":"Books","index":2,"n_rows":14,"n_cols":6,"rows_kept":14,"cut":false,"hidden":false,"merged":[[12,2,12,3]]}
["N","Title",null,"Retail","Price RUR"]
[1,"Russian Statistics",null,null,250,250]
[2,"Часть 1. Методология формирования информационной базы",null,null,100,350]
[3,"Часть 4. Тесты по теории статистики",null,null,150,500]
[4,"Бабич С.Г., Сиденко А.В. Сборник задач по общей теории статистики",null,null,100,600]
[5,"Теория статистики",null,null,450]
[6,"Часть 6. Социальная статистика",null,null,200]
[7,"Часть 5. Задачник по СЭС",null,null,100]
[8,"Часть 7. Экономическая статистика",null,null,200]
[9,"Часть 8. Международная статистика",null,null,200]
[10,"Моделирование и прогнозтрование финансовой конъюнктуры",null,null,100]
[null,null,null,null,{"$f":"SUM(E2:E11)","v":1850}]
[null,null,"Wholesale",null,1600]
[null,null,"","Discount",{"$f":"(E12-E13)/E12","v":0.13513513513513514}]

{"sheet":"Countries","index":3,"n_rows":90,"n_cols":5,"rows_kept":90,"cut":false,"hidden":false,"merged":[]}
["Afganistan","Korotkiy Roman",null,null,"Албания"]
["Algeria","Sel'kova Marina",null,null,"Ангола"]
["Argentina","Sayfetdinova Aurika",null,null,"Бангладеш"]
["Armenia","Demirchan Levon",null,null,"Барбадос"]
["Australia","Kryzhko Nikita",null,null,"Бахрейн"]
["Austria","Alykova Svetlana",null,null,"Белиз"]
["Azerbaidjan","Stopnikov Nikita",null,null,"Бенин"]
["Belgium","Lyubinina Daria",null,null,"Боливия"]
["Bielorussia","Egorova Eugenia",null,null,"Ботсвана"]
["Brazil","Serebryakova Anastasiya",null,null,"Бруней"]
["Bulgaria","Bochkova Victoria",null,null,"Буркина Фасо"]
["Canada","Borisova Ursuuna",null,null,"Бурунди"]
["Colombia","Pimkina Nina",null,null,"Бутан"]
["Czech Rep","Drozdov Dmitriy",null,null,"Габон"]
["China","Ostapenko Anastasia",null,null,"Гайана"]
["Cuba","Sokirko Alexey",null,null,"Гамбия"]
["Cyprus","Glukhova Ekaterina",null,null,"Гана"]
["Denmark","Bereze'nkova Angelica",null,null,"Гваделупа"]
["Egypt","Khromova Ekaterina",null,null,"Гватемала"]
["Finlamd","Kovalchuk Ekaterina",null,null,"Гвинея"]
["France","Grishin Alexander",null,null,"Гвинея-Бисау "]
["Georgia ","Kublashvily Vitali",null,null,"Гондурас"]
["Germany","Mazin George",null,null,"Доминанская Республика"]
["Great Britain","Smirnova Anastasiya",null,null,"Замбия"]
["Greece","Bezrukova Nelli",null,null,"Зимбабве"]
["Haiti","Stolyarov Sergey",null,null,"Иордания"]
["Hungary","Shchelokova Angelina",null,null,"Ирак"]
["Hong Kong","Zakaev Mansur",null,null,"Йемен"]
["India","Orlov Philip",null,null,"Кабо Верде"]
["Indonesia","Alekseenko Vladlena",null,null,"Камбоджа"]
["Italy","Bureev Maxim",null,null,"Камерун"]
["Iran","Khaikashvily Georgy",null,null,"Катар"]
["Ireland","Tkachev Edgard",null,null,"Кения"]
["Iceland","Shcherbakov Dmitry",null,null,"Киргизия"]
["Izrael","Turkina Sophie",null,null,"Респ. Конго"]
["Japan","Kuznetsov Nikita",null,null,"ДР Конго"]
["Kazakhstan","Kusmanova Kamila",null,null,"Коста-Рика"]
["Korea","Tyan Miogi",null,null,"Кот д'Ивуар"]
["Kuwait","Sapozhnikova Darya",null,null,"Лесото"]
["Laos","Voronov Ilya",null,null,"Либерия"]
["Latvia","Kupro'v Kamil",null,null,"Ливия"]
["Lebanon","Veselova Alexandra",null,null,"Маврикий"]
["Lithuania","Litvinov Sergey",null,null,"Мавритания"]
["Malaysia","Nedashkovsky Yan",null,null,"Мадагаскар"]
["Malta","Shancev Alexander",null,null,"Малави"]
["Mexico","Soldatova Maria",null,null,"Мали"]
["Mongolia","Rasstrizh'enkov Ivan",null,null,"Мальдивы"]
["Nethelands","Mikheev Nikolay",null,null,"Марокко"]
["New Zealand","Ushakov Roman",null,null,"Мозамбик"]
["Nicaragua","Loseva Maria",null,null,"Молдавия"]
["Norway","Al Khasan Ibragim",null,null,"Мьянма"]
["Peru","Nikolaev Sergey",null,null,"Намибия"]
["Philippines","Koroleva Sophie",null,null,"Непал"]
["Poland","Zherebiatieva Nataly",null,null,"Нигер  Niger "]
["Portugal","Bagdasaryan Arman",null,null,"Нигерия"]
["Rumania  ","Kiseleva Ekaterina",null,null,"Оман"]
["Russia","Yakovlev Egor",null,null,"Пакистан"]
["Sierra Leone","Malyk Erik",null,null,"Панама"]
["Singapore","Shkitina Ksenia",null,null,"Папуа-Новая Гвинея"]
["Slovakia","Smurygina Anna",null,null,"Парагвай"]
["South Africa","Zvereva Violetta",null,null,"Пуэрто-Рико"]
["Spain","Zinin Alexander",null,null,"Руанда"]
["Sweden","Akimova Valentina",null,null,"Сальвадор"]
["Switzeland","Samoilova Victoriia",null,null,"Саудовская Аравия"]
["Syria","Tolmacheva Valeriya",null,null,"Свазиленд"]
["Tajikistan","Gorovoy Valery",null,null,"Сейшельские острова"]
["Thailand","Gorshkova Anastasia",null,null,"Сенегал"]
["Tunisia","Yurik Yana",null,null,"Словакия"]
["Turkey","Kim Elle",null,null,"Сомали"]
["Vevezuela","Kochetkova Diana",null,null,"Судан"]
["Vietnam","Varagina Anastasia",null,null,"Суринам"]
["Ukraine","Gore'lchenkova Daria",null,null,"Танзания"]
["United Arab Emirates","Vinnikova Viktoria",null,null,"Того"]
["USA","Kasperskiy Da'vid, Shumov Anton",null,null,"Тонга"]
[null,null,null,null,"Тринидад и Тобаго"]
[null,null,null,null,"Тувалу"]
[null,null,null,null,"Туремения"]
[null,null,null,null,"Уганда"]
[null,null,null,null,"Узбекистан"]
[null,null,null,null,"Уругвай"]
[null,null,null,null,"Фиджи"]
[null,null,null,null,"Центральноафриканская Республика"]
[null,null,null,null,"Чад"]
[null,null,null,null,"Чили"]
[null,null,null,null,"Шри-Ланка"]
[null,null,null,null,"Эквадор"]
[null,null,null,null,"Экваториальная Гвинея"]
[null,null,null,null,"Эстония"]
[null,null,null,null,"Эфиопия"]
[null,null,null,null,"Ямайка"]

{"sheet":"Scientists","index":4,"n_rows":43,"n_cols":1,"rows_kept":43,"cut":false,"hidden":false,"merged":[]}
["Achenwall"]
["Francis John Anscombe"]
["Artemev Alexander Ivanovich"]
["Charles Babbage"]
[" George Edward Pelham Box"]
["Bowly"]
["Timothy Augustine Coghlan"]
["Hermann Conringius"]
[" Gertrude Cox"]
["Charles Davenant"]
["Edgwort"]
["Enguel"]
["Fisher Ronald"]
["Galton"]
["Galley"]
["Giffen"]
["Gini"]
["Gnedenko"]
["John Graunt"]
["Kaufman"]
["Sir Maurice Kendall"]
["King"]
["Davis Kingsley"]
["Ivan Kirillovich Kirillov"]
["Laspeyres"]
["Lexus"]
["Nassau William Senior"]
["Jerzy Neyman,"]
["Nightingale"]
["Oktyabrskiy"]
["Petty"]
["Pirson"]
["Porter"]
["Quetelet"]
["Salin"]
["Jacopo Sansovino"]
["August Ludwig von Schlözer"]
["Semenov-Tyanshansky"]
["Slutsky"]
["John Turkey"]
["William Playfair"]
["Yansom"]
["Yul"]

{"sheet":"Int org","index":5,"n_rows":36,"n_cols":1,"rows_kept":36,"cut":false,"hidden":false,"merged":[]}
["CISSTAT"]
["City Group"]
["Commonwealth Of Nations"]
["Eur Org Free Trade EFTA"]
["Eurasian Economic Community"]
["European Central Bank"]
["European Union"]
["Eurostat"]
["FAO"]
["Forbes"]
["Gazprom"]
["European Bank for Reconstruction and Development (EBRD)"]
["International Bank for Reconstruction and Development"]
["ICAO"]
["ILO"]
["IMF"]
["INTERPOL"]
["ISI"]
["OECD"]
["OPEC"]
["Red Cross"]
["UNCTAD"]
["UNESCO"]
["UNICEF"]
["UNICTRAL"]
["UNIDO"]
["UN Statistical Comission"]
["UNWTO"]
["Int Post Unity UPU"]
["Wbank"]
["Western European Union"]
["WHO"]
["World Wild Fund"]
["WIPO"]
["World Customs Organization"]
["WTO"]

{"sheet":"Converting","index":6,"n_rows":23,"n_cols":10,"rows_kept":23,"cut":false,"hidden":false,"merged":[[0,0,0,7],[1,0,1,3],[1,4,1,6],[2,1,21,1],[2,5,21,5]]}
["Приказ Ректора от 2 октября 2013 года"]
[]
[null,"Баллы текущего контроля успеваемости",-5,49,0,"Баллы к зачету/экзамену"]
[null,null,50,51,1]
[null,null,52,53,2]
[null,null,54,55,3]
[null,null,56,57,4]
[null,null,58,59,5]
[null,null,60,61,6,null,null,-5,49,2]
[null,null,62,63,7,null,null,50,69,3]
[null,null,64,65,8,null,null,70,85,4]
[null,null,66,67,9,null,null,86,100,5]
[null,null,68,70,10]
[null,null,71,73,11]
[null,null,74,76,12]
[null,null,77,79,13]
[null,null,80,82,14]
[null,null,83,85,15]
[null,null,86,88,16]
[null,null,89,91,17]
[null,null,92,94,18]
[null,null,95,97,19]
[null,null,98,100,20]